fUST/lending_fUST_20240109
["ID","MTS","AMOUNT","RATE_DAILY","PERIOD"]
[310805845,1704737447984,-500.0,0.0003589,2]
[310805847,1704737447994,-500.0,0.0003589,2]
[310805849,1704737448004,-500.0,0.0003589,2]
[310805851,1704737448014,-500.0,0.0003589,2]
[310805853,1704737448026,-431.39784591,0.0003589,2]
[310805855,1704737448035,-556.72323517,0.0003589,2]
[310805857,1704737448045,-500.0,0.0003589,5]
[310805859,1704737448056,-2013.91,0.0003589,2]
[310805861,1704737448066,-500.0,0.0003589,2]
[310805863,1704737448075,-500.0,0.0003589,2]
[310805865,1704737448085,-500.0,0.0003589,2]
[310805867,1704737448095,-500.0,0.0003589,2]
[310805869,1704737448105,-500.0,0.0003589,2]
[310805870,1704737448115,-254.96127151,0.0003589,2]
[310805872,1704737448126,-374.22929434,0.0003589,2]
[310805875,1704737448135,-1166.54,0.0003589,2]
[310805876,1704737448145,-514.05562196,0.0003589,2]
[310805878,1704737448155,-500.0,0.0003589,2]
[310805881,1704737448166,-2451.05,0.0003589,2]
[310805882,1704737448176,-500.0,0.0003589,2]
[310805884,1704737448185,-526.24216338,0.0003589,2]
[310805886,1704737448195,-500.0,0.0003589,2]
[310805888,1704737448204,-515.00911399,0.0003589,2]
[310805890,1704737448214,-500.0,0.0003589,2]
[310805892,1704737448223,-500.0,0.0003589,2]
[310805894,1704737448232,-2608.29,0.0003589,2]
[310805896,1704737448242,-918.4,0.0003589,2]
[310805898,1704737448252,-500.0,0.0003589,2]
[310805900,1704737448262,-500.0,0.0003589,2]
[310805902,1704737448274,-500.0,0.0003589,2]
[310805904,1704737448284,-500.0,0.0003589,2]
[310805906,1704737448293,-500.0,0.0003589,2]
[310805908,1704737448303,-500.0,0.0003589,2]
[310805910,1704737448313,-2171.91,0.0003589,2]
[310805912,1704737448324,-500.0,0.0003589,2]
[310805914,1704737448334,-500.0,0.0003589,2]
[310805916,1704737448342,-870.65,0.0003589,2]
[310805918,1704737448352,-5311.81,0.0003589,2]
[310805919,1704737448360,-525.81905015,0.0003589,2]
[310805931,1704737448460,-500.0,0.0003589,2]
[310805933,1704737448470,-2660.67,0.0003589,2]
[310805935,1704737448479,-500.0,0.0003589,2]
[310805937,1704737448487,-1325.04,0.0003589,2]
[310805939,1704737448496,-500.0,0.0003589,2]
[310805941,1704737448505,-1933.99,0.0003589,2]
[310805943,1704737448515,-14292.83,0.0003589,2]
[310805945,1704737448527,-6254.63,0.0003589,2]
[310805947,1704737448536,-500.0,0.0003589,2]
[310805949,1704737448546,-516.84004452,0.0003589,2]
[310805950,1704737448555,-500.0,0.0003589,2]
[310805952,1704737448565,-500.0,0.0003589,2]
[310805954,1704737448574,-308.24075342,0.0003589,2]
[310805956,1704737448583,-500.0,0.0003589,2]
[310805958,1704737448596,-500.0,0.0003589,2]
[310805960,1704737448606,-500.0,0.0003589,2]
[310805962,1704737448615,-512.94,0.0003589,2]
[310805963,1704737448624,-500.0,0.0003589,2]
[310805964,1704737448634,-500.0,0.0003589,2]
[310805965,1704737448643,-507.63489395,0.0003589,2]
[310805966,1704737448653,-500.0,0.0003589,2]
[310805967,1704737448663,-1478.36,0.0003589,2]
[310805968,1704737448673,-500.0,0.0003589,2]
[310805969,1704737448682,-500.0,0.0003589,2]
[310805970,1704737448692,-500.0,0.0003589,2]
[310805971,1704737448701,-500.0,0.0003589,2]
[310805972,1704737448710,-39935.26,0.0003589,2]
[310805973,1704737448720,-1347.36,0.0003589,2]
[310805974,1704737448730,-500.0,0.0003589,2]
[310805975,1704737448739,-500.0,0.0003589,2]
[310805976,1704737448748,-500.0,0.0003589,2]
[310805977,1704737448758,-202.88905439,0.0003589,2]
[310805978,1704737448769,-500.0,0.0003589,2]
[310805979,1704737448778,-576.67446224,0.0003589,2]
[310805980,1704737448786,-500.0,0.0003589,2]
[310805981,1704737448795,-500.0,0.0003589,2]
[310805982,1704737448804,-500.0,0.0003589,2]
[310805983,1704737448814,-2203.49,0.0003589,2]
[310805984,1704737448823,-500.0,0.0003589,2]
[310805985,1704737448833,-500.0,0.0003589,2]
[310805987,1704737448842,-500.0,0.0003589,2]
[310805988,1704737448851,-613.82,0.0003589,2]
[310805989,1704737448860,-500.0,0.0003589,2]
[310805991,1704737448869,-500.0,0.0003589,2]
[310805993,1704737448877,-500.0,0.0003589,2]
[310805995,1704737448886,-500.0,0.0003589,2]
[310805996,1704737448895,-500.0,0.0003589,2]
[310805998,1704737448904,-500.0,0.0003589,2]
[310806000,1704737448913,-500.0,0.0003589,2]
[310806003,1704737448923,-5000.0,0.00035981,2]
[310806004,1704737448932,-230.23731364,0.00036,4]
[310806006,1704737448941,-844.19554157,0.00036,2]
[310806007,1704737448950,-248.77413257,0.00036,30]
[310806008,1704737448960,-250.0,0.00036,3]
[310806009,1704737448969,-503.160555,0.00036,7]
[310806010,1704737448978,-825.30247185,0.00036,7]
[310806011,1704737448988,-2510.0,0.00036,7]
[310806012,1704737448997,-538.45148695,0.00036,7]
[310806013,1704737449007,-14974.96095487,0.00036062,5]
[310806014,1704737449019,-171.31930345,0.0003613,4]
[310806015,1704737449028,-154.8915759,0.00036154,4]
[310806016,1704737449038,-2093.73691098,0.00036154,2]
[310806017,1704737449047,-1026.30989534,0.00036156,2]
[310806018,1704737449056,-1681.52961621,0.00036161,7]
[310806019,1704737449066,-613.44573934,0.00036163,4]
[310806020,1704737449075,-292.67722506,0.00036164,2]
[310806021,1704737449085,-500.0,0.00036164,2]
[310806022,1704737449095,-500.0,0.00036164,2]
[310806023,1704737449104,-500.0,0.00036164,2]
[310806024,1704737449114,-500.0,0.00036164,2]
[310806025,1704737449124,-500.0,0.00036164,2]
[310806026,1704737449133,-500.0,0.00036164,2]
[310806027,1704737449143,-500.0,0.00036164,2]
[310806028,1704737449152,-500.0,0.00036164,2]
[310806029,1704737449162,-500.0,0.00036164,2]
[310806030,1704737449172,-213.58238922,0.00036164,2]
[310806031,1704737449181,-500.0,0.00036164,2]
[310806032,1704737449191,-500.0,0.00036164,2]
[310806033,1704737449200,-500.0,0.00036164,2]
[310806034,1704737449211,-500.0,0.00036164,2]
[310806035,1704737449220,-500.0,0.00036164,2]
[310806036,1704737449229,-602.09,0.00036164,2]
[310806037,1704737449239,-500.0,0.00036164,2]
[310806038,1704737449248,-500.0,0.00036164,2]
[310806039,1704737449257,-1515.78,0.00036164,2]
[310806040,1704737449268,-249.44257495,0.00036164,2]
[310806041,1704737449278,-161.62947205,0.00036164,2]
[310806042,1704737449288,-500.0,0.00036164,2]
[310806043,1704737449297,-500.0,0.00036164,2]
[310806044,1704737449307,-500.0,0.00036164,2]
[310806045,1704737449316,-500.0,0.00036164,2]
[310806046,1704737449325,-500.0,0.00036164,2]
[310806047,1704737449334,-500.0,0.00036164,2]
[310806048,1704737449343,-513.29,0.00036164,2]
[310806049,1704737449352,-1000.0,0.00036164,2]
[310806050,1704737449362,-500.0,0.00036164,2]
[310806051,1704737449371,-500.0,0.00036164,2]
[310806052,1704737449381,-500.0,0.00036164,2]
[310806053,1704737449390,-500.0,0.00036164,2]
[310806054,1704737449400,-500.0,0.00036164,2]
[310806055,1704737449409,-500.0,0.00036164,2]
[310806056,1704737449418,-500.0,0.00036164,2]
[310806057,1704737449427,-500.0,0.00036164,2]
[310806058,1704737449436,-509.66374752,0.00036164,2]
[310806059,1704737449445,-500.0,0.00036164,2]
[310806060,1704737449454,-500.0,0.00036164,2]
[310806061,1704737449463,-500.0,0.00036164,2]
[310806063,1704737449472,-500.0,0.00036164,2]
[310806064,1704737449481,-500.0,0.00036164,2]
[310806066,1704737449490,-500.0,0.00036164,2]
[310806068,1704737449499,-500.0,0.00036164,2]
[310806070,1704737449508,-1062.52,0.00036164,2]
[310806072,1704737449521,-1183.23,0.00036164,2]
[310806075,1704737449536,-500.0,0.00036164,2]
[310806077,1704737449550,-500.0,0.00036164,2]
[310806079,1704737449563,-500.0,0.00036164,2]
[310806082,1704737449575,-500.0,0.00036164,2]
[310806084,1704737449588,-500.0,0.00036164,2]
[310806086,1704737449602,-500.0,0.00036164,2]
[310806088,1704737449613,-500.0,0.00036164,2]
[310806091,1704737449626,-154.99763678,0.00036164,2]
[310806093,1704737449641,-220.0,0.00036164,2]
[310806096,1704737449653,-500.0,0.00036164,2]
[310806098,1704737449665,-522.2,0.00036164,2]
[310806100,1704737449676,-255.49757785,0.00036164,2]
[310806102,1704737449688,-500.0,0.00036164,2]
[310806104,1704737449700,-1342.84,0.00036164,2]
[310806107,1704737449713,-500.0,0.00036164,2]
[310806109,1704737449725,-500.0,0.00036164,2]
[310806111,1704737449736,-500.0,0.00036164,2]
[310806114,1704737449749,-500.0,0.00036164,2]
[310806116,1704737449761,-625.2,0.00036164,2]
[310806118,1704737449772,-500.0,0.00036164,2]
[310806121,1704737449786,-515.62358603,0.00036164,2]
[310806123,1704737449798,-500.0,0.00036164,2]
[310806125,1704737449810,-500.0,0.00036164,2]
[310806128,1704737449821,-715.4,0.00036164,2]
[310806130,1704737449833,-500.0,0.00036164,2]
[310806132,1704737449846,-500.0,0.00036164,2]
[310806134,1704737449859,-500.0,0.00036164,2]
[310806136,1704737449870,-360.07695416,0.00036164,2]
[310806139,1704737449883,-169.64302887,0.00036164,2]
[310806141,1704737449896,-500.0,0.00036164,2]
[310806143,1704737449908,-500.0,0.00036164,2]
[310806146,1704737449921,-500.0,0.00036164,2]
[310806148,1704737449931,-500.0,0.00036164,2]
[310806150,1704737449941,-500.0,0.00036164,2]
[310806152,1704737449951,-500.0,0.00036164,2]
[310806154,1704737449963,-627.30552069,0.00036164,2]
[310806156,1704737449975,-500.0,0.00036164,2]
[310806159,1704737449987,-500.0,0.00036164,2]
[310806161,1704737449999,-500.0,0.00036164,2]
[310806163,1704737450013,-1991.07,0.00036164,2]
[310806166,1704737450027,-500.0,0.00036164,2]
[310806168,1704737450038,-500.0,0.00036164,2]
[310806170,1704737450048,-766.16,0.00036164,2]
[310806172,1704737450059,-500.0,0.00036164,2]
[310806174,1704737450070,-500.0,0.00036164,2]
[310806176,1704737450082,-500.0,0.00036164,2]
[310806178,1704737450094,-1170.54,0.00036164,2]
[310806180,1704737450105,-500.0,0.00036164,2]
[310806183,1704737450117,-500.0,0.00036164,2]
[310806185,1704737450127,-500.0,0.00036164,2]
[310806187,1704737450139,-548.56999679,0.00036164,2]
[310806189,1704737450152,-500.0,0.00036164,2]
[310806191,1704737450163,-500.0,0.00036164,2]
[310806193,1704737450175,-500.0,0.00036164,5]
[310806196,1704737450186,-2013.91,0.00036164,2]
[310806198,1704737450197,-500.0,0.00036164,2]
[310806200,1704737450209,-500.0,0.00036164,2]
[310806202,1704737450220,-500.0,0.00036164,2]
[310806204,1704737450231,-614.39682082,0.00036164,2]
[310806206,1704737450242,-500.0,0.00036164,2]
[310806208,1704737450253,-1166.54,0.00036164,2]
[310806211,1704737450265,-500.0,0.00036164,2]
[310806213,1704737450277,-2451.05,0.00036164,2]
[310806215,1704737450287,-500.0,0.00036164,2]
[310806217,1704737450298,-500.0,0.00036164,2]
[310806219,1704737450310,-500.0,0.00036164,2]
[310806221,1704737450321,-500.0,0.00036164,2]
[310806223,1704737450332,-2608.29,0.00036164,2]
[310806225,1704737450343,-918.4,0.00036164,2]
[310806228,1704737450354,-500.0,0.00036164,2]
[310806230,1704737450364,-525.88586825,0.00036164,2]
[310806232,1704737450375,-500.0,0.00036164,2]
[310806234,1704737450386,-500.0,0.00036164,2]
[310806236,1704737450397,-500.0,0.00036164,2]
[310806238,1704737450407,-536.45377234,0.00036164,2]
[310806241,1704737450418,-2171.91,0.00036164,2]
[310806243,1704737450430,-500.0,0.00036164,2]
[310806245,1704737450441,-500.0,0.00036164,2]
[310806247,1704737450451,-870.65,0.00036164,2]
[310806249,1704737450464,-5311.81,0.00036164,2]
[310806252,1704737450476,-500.0,0.00036164,2]
[310806254,1704737450487,-2660.67,0.00036164,2]
[310806256,1704737450498,-500.0,0.00036164,2]
[310806258,1704737450509,-1325.04,0.00036164,2]
[310806260,1704737450522,-500.0,0.00036164,2]
[310806263,1704737450533,-1933.99,0.00036164,2]
[310806265,1704737450543,-14292.83,0.00036164,2]
[310806267,1704737450554,-6254.63,0.00036164,2]
[310806269,1704737450565,-588.33983134,0.00036164,2]
[310806271,1704737450576,-500.0,0.00036164,2]
[310806273,1704737450586,-500.0,0.00036164,2]
[310806275,1704737450597,-500.0,0.00036164,2]
[310806277,1704737450607,-500.0,0.00036164,2]
[310806279,1704737450618,-500.0,0.00036164,2]
[310806281,1704737450628,-512.94,0.00036164,2]
[310806283,1704737450638,-500.0,0.00036164,2]
[310806285,1704737450646,-500.0,0.00036164,2]
[310806287,1704737450655,-500.0,0.00036164,2]
[310806289,1704737450665,-1478.36,0.00036164,2]
[310806291,1704737450674,-500.0,0.00036164,2]
[310806293,1704737450684,-500.0,0.00036164,2]
[310806295,1704737450693,-500.0,0.00036164,2]
[310806297,1704737450702,-500.0,0.00036164,2]
[310806299,1704737450711,-14220.30413268,0.00036164,2]
[310806302,1704737450730,-22859.61523209,0.00036164,2]
[310809936,1704737491301,200.0,0.00025613,7]
[310811918,1704737791461,200.0,0.00025613,7]
[310812076,1704738091480,200.0,0.00025613,7]
[310812120,1704738234925,2626.13066537,0.0001921,5]
[310812139,1704738281290,1351.31196449,0.0001921,5]
[310812141,1704738293294,518.73795503,0.0001921,5]
[310812142,1704738391589,200.0,0.00025613,7]
[310812279,1704738632174,-508.79855076,0.00019198,2]
[310812281,1704738632183,-1154.05400758,0.00019199,2]
[310812287,1704738632234,-834.72044473,0.00019199,2]
[310812289,1704738632243,-269.07067563,0.0002,2]
[310812291,1704738632252,-260.82241338,0.00021083,2]
[310812293,1704738632261,-1234.53646626,0.00021084,2]
[310812295,1704738632273,-35576.51271239,0.00021084,2]
[310812297,1704738632283,-17584.3647864,0.00021085,2]
[310812299,1704738632292,-174.62014509,0.00021899,2]
[310812301,1704738632302,-289.9994027,0.00022,2]
[310812303,1704738632312,-2092.18468192,0.00023,2]
[310812305,1704738632322,-161.3207187,0.00023285,2]
[310812308,1704738632333,-271.57180813,0.00023286,2]
[310812310,1704738632343,-1045.5461371,0.00023286,2]
[310812312,1704738632352,-3301.69756528,0.00023286,2]
[310812314,1704738632362,-158.25059054,0.00023286,2]
[310812315,1704738632371,-298.4571858,0.00023286,2]
[310812317,1704738632382,-196.13490158,0.00023287,2]
[310812318,1704738632391,-155.34866474,0.00023287,2]
[310812319,1704738632400,-18.92414416,0.00023287,2]
[310812424,1704738638401,-154.84515485,0.00019197,2]
[310812427,1704738638410,-626.36077541,0.00023287,2]
[310812436,1704738638494,-5303.05640056,0.00023287,2]
[310812438,1704738638504,-155.09335298,0.00023287,2]
[310812440,1704738638514,-8012.30232321,0.00024318,2]
[310812442,1704738638523,-200.0,0.00024318,2]
[310812445,1704738638533,-762.80188617,0.00025,2]
[310812447,1704738638542,-1273.09329281,0.00025613,2]
[310812448,1704738638551,-905.06539096,0.000259,2]
[310812450,1704738638561,-521.73176481,0.00026,2]
[310812453,1704738638570,-3388.41467337,0.00027,2]
[310812455,1704738638580,-15597.42966677,0.00028022,2]
[310812457,1704738638589,-3384.90764204,0.00028022,2]
[310812458,1704738638598,-457.24549821,0.000289,2]
[310812460,1704738638607,-388.25177942,0.00028999,2]
[310812463,1704738638617,-500.0,0.00028999,2]
[310812464,1704738638626,-532.90968926,0.00028999,2]
[310812466,1704738638635,-183.06263013,0.00028999,2]
[310812469,1704738638644,-500.0,0.00028999,2]
[310812471,1704738638654,-241.31789563,0.00028999,2]
[310812473,1704738638663,-300.0,0.00029,2]
[310812475,1704738638672,-3600.0,0.00029,2]
[310812476,1704738638681,-151.99711214,0.00029941,2]
[310812478,1704738638690,-282.4048077,0.0003,3]
[310812480,1704738638700,-457.24549818,0.00030554,2]
[310812482,1704738638709,-200.0,0.000311,4]
[310812484,1704738638719,-542.37895057,0.00031948,3]
[310812486,1704738638727,-457.24549818,0.00032208,2]
[310812488,1704738638737,-161.0,0.00033,2]
[310812490,1704738638745,-150.84915085,0.00033428,2]
[310812492,1704738638755,-457.24549818,0.00033862,2]
[310812494,1704738638763,-500.0,0.00034,7]
[310812496,1704738638772,-1000.0,0.00034,7]
[310812498,1704738638782,-6290.68,0.00034336,3]
[310812500,1704738638791,-5492.62,0.00034346,3]
[310812502,1704738638800,-7548.81,0.00034346,3]
[310812504,1704738638810,-5242.23,0.00034346,3]
[310812506,1704738638819,-12217.53301444,0.00034356,5]
[310812508,1704738638828,-3187.948716,0.00034521,2]
[310812510,1704738638837,-162.0,0.00034521,2]
[310812512,1704738638846,-553.89631554,0.00034999,4]
[310812514,1704738638856,-1460.35667211,0.00035,14]
[310812516,1704738638865,-379.58002868,0.00035,4]
[310812518,1704738638875,-2650.27448344,0.00035,4]
[310812521,1704738638885,-500.0,0.00035,7]
[310812523,1704738638894,-332.47364084,0.00035,4]
[310812525,1704738638903,-6451.82354929,0.00035,4]
[310812526,1704738638912,-154.84515485,0.00035118,4]
[310812529,1704738638922,-366.16185748,0.00035119,2]
[310812530,1704738638931,-23801.02066394,0.00035131,4]
[310812532,1704738638940,-401.0,0.00035452,2]
[310812534,1704738638952,-154.84515485,0.00035466,4]
[310812536,1704738638963,-161.52679236,0.00035498,4]
[310812538,1704738638972,-729.71955724,0.00035498,4]
[310812541,1704738638981,-197.72102266,0.00035498,4]
[310812542,1704738638990,-2819.49997052,0.00035498,4]
[310812545,1704738638999,-1056.03690816,0.00035498,7]
[310812547,1704738639008,-165.49712597,0.00035498,4]
[310812549,1704738639018,-658.38227285,0.00035498,4]
[310812551,1704738639026,-1109.90244217,0.00035498,4]
[310812553,1704738639035,-167.32136736,0.00035498,4]
[310812555,1704738639045,-155.40113874,0.00035498,4]
[310812557,1704738639053,-4209.5776207,0.00035498,7]
[310812558,1704738639062,-291.57730732,0.00035498,4]
[310812560,1704738639071,-155.66713933,0.00035498,6]
[310812563,1704738639082,-155.08933732,0.00035498,4]
[310812565,1704738639091,-3463.44375294,0.00035498,4]
[310812567,1704738639101,-685.91249263,0.00035498,4]
[310812569,1704738639111,-570.93734049,0.00035498,4]
[310812570,1704738639120,-2463.21989276,0.00035498,4]
[310812573,1704738639133,-507.00265595,0.00035498,4]
[310812575,1704738639142,-408.40805723,0.00035498,4]
[310812577,1704738639152,-166.39361975,0.00035498,7]
[310812579,1704738639161,-319.74581355,0.00035498,7]
[310812581,1704738639171,-322.33599443,0.00035498,4]
[310812583,1704738639179,-500.0,0.00035498,7]
[310812585,1704738639188,-430.98842172,0.00035498,7]
[310812587,1704738639197,-155.75858157,0.00035499,4]
[310812589,1704738639208,-155.26001974,0.00035499,4]
[310812590,1704738639220,-228.37337966,0.00035499,4]
[310812591,1704738639229,-10192.65115384,0.00035499,2]
[310812593,1704738639238,-9569.82402245,0.000355,14]
[310812594,1704738639279,-1000.0,0.000355,14]
[310812639,1704738641598,-506.4117216,0.00028,2]
[310812640,1704738641608,-2650.66490921,0.000355,14]
[310812642,1704738641620,-454.991697,0.000355,14]
[310812643,1704738641631,-321.48426728,0.000355,14]
[310812783,1704738643775,-33050.46418264,0.000355,14]
[310812784,1704738643785,-4971.53154458,0.00035505,15]
[310812787,1704738643798,-8485.43792168,0.00035505,15]
[310812789,1704738643807,-457.24549818,0.00035516,2]
[310812791,1704738643817,-2710.30468945,0.0003559,12]
[310812793,1704738643827,-5297.27632662,0.00035615,4]
[310812795,1704738643841,-1488.3264299,0.00035615,4]
[310812797,1704738643851,-500.0,0.00035616,2]
[310812799,1704738643862,-500.0,0.00035616,2]
[310812801,1704738643873,-500.0,0.00035616,2]
[310812803,1704738643884,-500.0,0.00035616,2]
[310812805,1704738643893,-500.0,0.00035616,2]
[310812807,1704738643902,-446.07457336,0.00035616,2]
[310812809,1704738643913,-500.0,0.00035616,2]
[310812811,1704738643923,-500.0,0.00035616,2]
[310812813,1704738643933,-500.0,0.00035616,2]
[310812815,1704738643945,-500.0,0.00035616,2]
[310812817,1704738643955,-500.0,0.00035616,2]
[310812818,1704738643966,-500.0,0.00035616,2]
[310812820,1704738643977,-500.0,0.00035616,2]
[310812823,1704738643987,-500.0,0.00035616,2]
[310812824,1704738643998,-500.0,0.00035616,2]
[310812825,1704738644008,-500.0,0.00035616,2]
[310812826,1704738644018,-500.0,0.00035616,2]
[310812827,1704738644028,-500.0,0.00035616,2]
[310812828,1704738644038,-500.0,0.00035616,2]
[310812829,1704738644047,-500.0,0.00035616,2]
[310812830,1704738644058,-500.0,0.00035616,2]
[310812831,1704738644067,-500.0,0.00035616,2]
[310812832,1704738644078,-929.7,0.00035616,2]
[310812833,1704738644088,-500.0,0.00035616,2]
[310812834,1704738644098,-500.0,0.00035616,2]
[310812835,1704738644108,-500.0,0.00035616,2]
[310812836,1704738644118,-500.0,0.00035616,2]
[310812837,1704738644128,-550.74376636,0.00035616,2]
[310812838,1704738644138,-500.0,0.00035616,2]
[310812839,1704738644147,-1174.99,0.00035616,2]
[310812840,1704738644157,-500.0,0.00035616,2]
[310812841,1704738644167,-500.0,0.00035616,2]
[310812842,1704738644177,-549.93780237,0.00035616,2]
[310812843,1704738644187,-547.05,0.00035616,2]
[310812844,1704738644197,-500.0,0.00035616,2]
[310812845,1704738644209,-176.68401647,0.00035616,2]
[310812846,1704738644218,-500.0,0.00035616,2]
[310812847,1704738644228,-500.0,0.00035616,2]
[310812848,1704738644238,-500.0,0.00035616,2]
[310812849,1704738644248,-500.0,0.00035616,2]
[310812850,1704738644258,-500.0,0.00035616,2]
[310812851,1704738644267,-500.0,0.00035616,2]
[310812852,1704738644277,-228.81222293,0.00035616,2]
[310812853,1704738644287,-500.0,0.00035616,2]
[310812854,1704738644298,-500.0,0.00035616,2]
[310812855,1704738644307,-500.0,0.00035616,2]
[310812856,1704738644317,-670.39,0.00035616,2]
[310812857,1704738644327,-500.0,0.00035616,2]
[310812858,1704738644337,-500.0,0.00035616,2]
[310812859,1704738644347,-500.0,0.00035616,2]
[310812860,1704738644357,-500.0,0.00035616,2]
[310812861,1704738644367,-500.0,0.00035616,2]
[310812862,1704738644377,-500.0,0.00035616,2]
[310812863,1704738644386,-500.0,0.00035616,2]
[310812864,1704738644396,-500.0,0.00035616,2]
[310812865,1704738644405,-500.0,0.00035616,2]
[310812866,1704738644415,-500.0,0.00035616,2]
[310812867,1704738644424,-500.0,0.00035616,2]
[310812869,1704738644434,-500.0,0.00035616,2]
[310812870,1704738644444,-500.0,0.00035616,2]
[310812871,1704738644455,-500.0,0.00035616,2]
[310812873,1704738644465,-500.0,0.00035616,2]
[310812875,1704738644474,-1742.19,0.00035616,2]
[310812877,1704738644484,-500.0,0.00035616,2]
[310812880,1704738644494,-500.0,0.00035616,2]
[310812881,1704738644505,-1035.33,0.00035616,2]
[310812884,1704738644514,-500.0,0.00035616,2]
[310812885,1704738644524,-500.0,0.00035616,2]
[310812887,1704738644533,-500.71419149,0.00035616,2]
[310812889,1704738644545,-500.0,0.00035616,2]
[310812891,1704738644583,-500.0,0.00035616,2]
[310812893,1704738644594,-500.0,0.00035616,2]
[310812895,1704738644604,-625.98,0.00035616,2]
[310812898,1704738644614,-500.0,0.00035616,2]
[310812899,1704738644625,-500.0,0.00035616,2]
[310812901,1704738644636,-500.0,0.00035616,2]
[310812903,1704738644648,-224.30687846,0.00035616,2]
[310812905,1704738644661,-1159.41,0.00035616,2]
[310812907,1704738644672,-500.0,0.00035616,2]
[310812909,1704738644682,-1024.22,0.00035616,2]
[310812911,1704738644691,-500.0,0.00035616,2]
[310812913,1704738644700,-500.0,0.00035616,2]
[310812915,1704738644713,-500.0,0.00035616,2]
[310812917,1704738644723,-500.0,0.00035616,2]
[310812919,1704738644733,-500.0,0.00035616,2]
[310812921,1704738644743,-500.0,0.00035616,2]
[310812923,1704738644753,-500.0,0.00035616,2]
[310812925,1704738644763,-500.0,0.00035616,2]
[310812927,1704738644772,-500.0,0.00035616,2]
[310812929,1704738644783,-500.0,0.00035616,2]
[310812931,1704738644793,-500.0,0.00035616,2]
[310812933,1704738644802,-500.0,0.00035616,2]
[310812934,1704738644812,-500.0,0.00035616,2]
[310812936,1704738644822,-500.0,0.00035616,2]
[310812938,1704738644832,-500.0,0.00035616,2]
[310812940,1704738644842,-500.0,0.00035616,2]
[310812942,1704738644851,-14.88781474,0.00035616,2]
[310816325,1704739832616,-269.07067563,0.00023262,2]
[310816327,1704739832626,-508.79855076,0.00023263,2]
[310816329,1704739832635,-659.70619264,0.00023287,2]
[310816331,1704739832648,-734.31193656,0.00028022,2]
[310816333,1704739832667,-322.99063242,0.00028022,2]
[310816335,1704739832677,-832.73661179,0.00028022,2]
[310816337,1704739832687,-150.0,0.00029,2]
[310816339,1704739832698,-1894.97525621,0.00029,2]
[310816740,1704739838743,-974.6459084,0.00028022,2]
[310816741,1704739838753,-5305.02474379,0.00029,2]
[310816742,1704739838762,-150.0,0.00029635,2]
[310816743,1704739838771,-295.431,0.00029635,2]
[310816744,1704739838780,-424.0145552,0.00029941,2]
[310816745,1704739838790,-181.827664,0.00031278,2]
[310816746,1704739838799,-226.90835638,0.00032052,30]
[310816747,1704739838809,-952.7748806,0.00032052,4]
[310816748,1704739838818,-200.0,0.000324,4]
[310816749,1704739838827,-150.0,0.00032635,2]
[310816750,1704739838837,-150.0,0.00033516,2]
[310816751,1704739838846,-2429.55916527,0.00033833,4]
[310816752,1704739838855,-12217.53301444,0.00033835,5]
[310816753,1704739838864,-1000.0,0.00034,7]
[310816754,1704739838873,-2550.358972,0.00034521,2]
[310816755,1704739838882,-652.99555,0.00035,45]
[310816756,1704739838891,-332.47364084,0.00035099,4]